lending/lending_fUSD_20260211
["ID","MTS","AMOUNT","RATE_DAILY","PERIOD"]
[405115946,1770851436571,-1288.55538268,0.00017999,2]
[405115947,1770851436581,-204.26628332,0.00017999,2]
[405115948,1770851436591,-1271.92886163,0.00017999,2]
[405115949,1770851436601,-1271.92886163,0.00017999,2]
[405115950,1770851436611,-1271.92886163,0.00017999,2]
[405115951,1770851436621,-1271.92886163,0.00017999,2]
[405115952,1770851436631,-1271.92886163,0.00017999,2]
[405115953,1770851436642,-1271.92886163,0.00017999,2]
[405115954,1770851436652,-1271.92886163,0.00017999,2]
[405115955,1770851436662,-1271.92886163,0.00017999,2]
[405115956,1770851436672,-1271.92886163,0.00017999,2]
[405115957,1770851436682,-1271.92886163,0.00017999,2]
[405115958,1770851436692,-1271.92886163,0.00017999,2]
[405115959,1770851436702,-1271.92886163,0.00017999,2]
[405115960,1770851436712,-1271.92886163,0.00017999,2]
[405115961,1770851436721,-1271.92886163,0.00017999,2]
[405115962,1770851436733,-1271.92886163,0.00017999,2]
[405115963,1770851436743,-1271.92886163,0.00017999,2]
[405115964,1770851436752,-1271.92886163,0.00017999,2]
[405115965,1770851436761,-1271.92886163,0.00017999,2]
[405115966,1770851436771,-1271.92886163,0.00017999,2]
[405115967,1770851436780,-1271.92886163,0.00017999,2]
[405115968,1770851436790,-1271.92886163,0.00017999,2]
[405115969,1770851436801,-1271.92886163,0.00017999,2]
[405115970,1770851436811,-1271.92886163,0.00017999,2]
[405115971,1770851436821,-1271.92886163,0.00017999,2]
[405115972,1770851436831,-1271.92886163,0.00017999,2]
[405115973,1770851436841,-611.50300575,0.00017999,2]
[405115974,1770851436850,-1271.92886163,0.00017999,2]
[405115975,1770851436860,-1271.92886161,0.00017999,2]
[405115976,1770851436870,-1271.92886161,0.00017999,2]
[405115977,1770851436880,-1271.92886161,0.00017999,2]
[405115978,1770851436891,-1271.92886161,0.00017999,2]
[405115979,1770851436903,-775.76288008,0.00017999,2]
[405115980,1770851436912,-775.76288008,0.00017999,2]
[405115981,1770851436922,-775.76288008,0.00017999,2]
[405115982,1770851436935,-775.76288008,0.00017999,2]
[405115983,1770851436944,-775.76288008,0.00017999,2]
[405115984,1770851436954,-775.76288008,0.00017999,2]
[405115985,1770851436965,-775.76288008,0.00017999,2]
[405115986,1770851436974,-775.76288008,0.00017999,2]
[405115987,1770851436984,-775.76288008,0.00017999,2]
[405115988,1770851436994,-775.76288008,0.00017999,2]
[405115989,1770851437003,-775.76288008,0.00017999,2]
[405115990,1770851437013,-775.76288008,0.00017999,2]
[405115991,1770851437023,-775.76288008,0.00017999,2]
[405115992,1770851437034,-775.76288008,0.00017999,2]
[405115993,1770851437044,-775.76288008,0.00017999,2]
[405115994,1770851437054,-814.55102409,0.00017999,2]
[405115995,1770851437064,-814.55102409,0.00017999,2]
[405115996,1770851437075,-814.55102409,0.00017999,2]
[405115997,1770851437085,-814.55102409,0.00017999,2]
[405115998,1770851437095,-814.55102409,0.00017999,2]
[405115999,1770851437104,-814.55102409,0.00017999,2]
[405116000,1770851437114,-814.55102409,0.00017999,2]
[405116001,1770851437124,-814.55102409,0.00017999,2]
[405116002,1770851437134,-814.55102409,0.00017999,2]
[405116003,1770851437144,-814.55102409,0.00017999,2]
[405116004,1770851437154,-1271.92886159,0.00017999,2]
[405116005,1770851437163,-1042.62531082,0.00017999,2]
[405116006,1770851437173,-1042.62531082,0.00017999,2]
[405116007,1770851437184,-618980.56964771,0.00018,2]
[405116008,1770851437194,-332331.35658014,0.00018,2]
[405116009,1770851437211,-225794.90278407,0.00018,2]
[405116010,1770851437224,-178618.02765871,0.00018,2]
[405116011,1770851437462,-159993.54310022,0.00018,2]
[405116012,1770851437476,-1254.41808677,0.00018,2]
[405116013,1770851437499,-391.88,0.00018,2]
[405116014,1770851437534,-645.79236201,0.00018,2]
[405116018,1770851439417,-1183.97152561,0.0001766,2]
[405116019,1770851439603,-80.76150124,0.0001766,2]
[405116020,1770851439621,-1594.69228295,0.00017852,2]
[405116035,1770851440745,-421.11578465,0.00017196,2]
[405116036,1770851440768,-4687.23714567,0.00017196,2]
[405116037,1770851440790,-1481.64706968,0.00017196,2]
[405116038,1770851440808,-2042.56632365,0.00017852,2]
[405116039,1770851440825,-1000840.24176396,0.00018,2]
[405116040,1770851440843,-249.69,0.00018,7]
[405116041,1770851440860,-7259240.17619656,0.00018,2]
[405116042,1770851440889,-796.04788305,0.00018,2]
[405116043,1770851440912,-6913.50557726,0.00018,2]
[405116044,1770851440970,-97774.7598706,0.00018,2]
[405116045,1770851440992,-498.56809228,0.00018,2]
[405116049,1770851444115,-521.71363247,0.0001778,2]
[405116050,1770851444178,-743.01939438,0.0001778,2]
[405116051,1770851444188,-394.77597274,0.00017876,2]
[405116052,1770851444204,-3242.48263386,0.00017876,2]
[405116053,1770851444214,-2839.52414397,0.00018,2]
[405116054,1770851446122,-927.34473525,0.000179,2]
[405116055,1770851446135,-2709.91387135,0.000179,2]
[405116056,1770851446146,-7819.54229762,0.00018,2]
[405116057,1770851446298,-1264.73302685,0.000179,2]
[405116058,1770851446310,-4304.26697265,0.00018,2]
[405116059,1770851446359,-523.49586585,0.00018,2]
[405116060,1770851446371,-416.30793719,0.00018,2]
[405116061,1770851446425,-9241.54327382,0.00018,2]
[405116065,1770851446724,-3165.45,0.00018,2]
[405116072,1770851505333,2000.0,0.0003561,120]
[405116073,1770851580543,3239.68306186,0.00035616,120]
[405116076,1770851944250,4999.9999991,0.00035616,120]
[405116113,1770852631371,-382.56411821,0.00013691,2]
[405116114,1770852631385,-598.56,0.00013691,2]
[405116115,1770852631398,-18.87588179,0.00013691,2]
[405116116,1770852631408,-250.0,0.00013691,2]
[405116117,1770852631418,-263.0,0.00013691,2]
[405116118,1770852631428,-300.0,0.0001506,2]
[405116119,1770852631439,-250.0,0.0001506,2]
[405116120,1770852631449,-250.0,0.0001506,2]
[405116121,1770852631460,-701.03999964,0.0001506,2]
[405116122,1770852631471,-300.0,0.00015609,2]
[405116123,1770852631482,-300.0,0.00015609,2]
[405116124,1770852631493,-300.0,0.00015609,2]
[405116125,1770852631503,-225.96921861,0.0001561,2]
[405116128,1770852631521,-1258.9,0.0001561,2]
[405116130,1770852631533,-1657.24019948,0.0001561,2]
[405116132,1770852631546,-1354.03563418,0.0001561,2]
[405116138,1770852631621,-5139.61447808,0.0001561,2]
[405116139,1770852631634,-371.65095903,0.0001561,2]
[405116151,1770852637408,-1164.20361154,0.0001561,2]
[405116152,1770852637419,-431.69598331,0.0001561,2]
[405116153,1770852637431,-999.8506,0.0001561,2]
[405116154,1770852637443,-1000.51193,0.0001561,2]
[405116155,1770852637463,-66982.59161559,0.0001561,2]
[405116156,1770852637475,-379.9324499,0.0001561,2]
[405116157,1770852637651,-1550.56786155,0.0001561,2]
[405116158,1770852637662,-1323.45921772,0.0001561,2]
[405116159,1770852637674,-27111.64349472,0.0001561,2]
[405116160,1770852637686,-871.59133588,0.0001561,2]
[405116161,1770852637698,-761.93415659,0.0001561,2]
[405116162,1770852637726,-3150.75,0.0001561,2]
[405116167,1770852639371,-1221.1636,0.0001561,2]
[405116168,1770852639384,-265.96,0.0001561,2]
[405116169,1770852639409,-618.46642038,0.0001561,2]
[405116170,1770852639421,-2516.83516378,0.0001561,2]
[405116171,1770852639433,-7028.84508125,0.0001561,2]
[405116172,1770852639453,-347.8193174,0.0001561,2]
[405116173,1770852639473,-431.63319792,0.0001561,2]
[405116174,1770852639664,-70562.23359723,0.0001561,2]
[405116175,1770852639674,-200.0,0.0001579,2]
[405116176,1770852639683,-2728.87,0.00015894,2]
[405116177,1770852639694,-150.0,0.00015947,2]
[405116178,1770852639704,-239.36,0.00015955,2]
[405116179,1770852639714,-500.0,0.00016036,2]
[405116180,1770852639723,-200.0,0.00016036,2]
[405116181,1770852639733,-151.0,0.00016036,2]
[405116182,1770852639744,-151.0,0.00016036,2]
[405116183,1770852639753,-151.0,0.00016036,2]
[405116184,1770852639763,-151.0,0.00016036,2]
[405116185,1770852639773,-500.0,0.00016036,2]
[405116186,1770852639782,-151.0,0.00016036,2]
[405116187,1770852639792,-500.0,0.00016036,2]
[405116188,1770852639801,-151.0,0.00016036,2]
[405116189,1770852639811,-500.0,0.00016036,2]
[405116190,1770852639821,-151.0,0.00016036,2]
[405116191,1770852639831,-500.0,0.00016036,2]
[405116192,1770852639841,-500.0,0.00016036,2]
[405116193,1770852639850,-151.0,0.00016036,2]
[405116194,1770852639860,-500.0,0.00016036,2]
[405116195,1770852639870,-500.0,0.00016036,2]
[405116196,1770852639879,-151.0,0.00016036,2]
[405116197,1770852639889,-500.0,0.00016036,2]
[405116198,1770852639898,-500.0,0.00016036,2]
[405116199,1770852639908,-151.0,0.00016036,2]
[405116200,1770852639918,-500.0,0.00016036,2]
[405116201,1770852639928,-500.0,0.00016036,2]
[405116202,1770852639938,-151.0,0.00016036,2]
[405116203,1770852639948,-500.0,0.00016036,2]
[405116204,1770852639959,-500.0,0.00016036,2]
[405116205,1770852639968,-151.0,0.00016036,2]
[405116206,1770852639979,-500.0,0.00016036,2]
[405116207,1770852639988,-500.0,0.00016036,2]
[405116208,1770852639998,-500.0,0.00016036,2]
[405116209,1770852640007,-500.0,0.00016036,2]
[405116210,1770852640017,-151.0,0.00016036,2]
[405116211,1770852640027,-500.0,0.00016036,2]
[405116212,1770852640037,-500.0,0.00016036,2]
[405116213,1770852640047,-151.0,0.00016036,2]
[405116214,1770852640057,-500.0,0.00016036,2]
[405116215,1770852640067,-151.0,0.00016036,2]
[405116216,1770852640078,-500.0,0.00016036,2]
[405116217,1770852640087,-151.0,0.00016036,2]
[405116218,1770852640097,-500.0,0.00016036,2]
[405116219,1770852640107,-151.0,0.00016036,2]
[405116220,1770852640117,-151.0,0.00016036,2]
[405116221,1770852640126,-500.0,0.00016036,2]
[405116222,1770852640135,-151.0,0.00016036,2]
[405116223,1770852640145,-495.52702673,0.00016036,2]
[405116224,1770852640154,-151.0,0.00016036,2]
[405116225,1770852640163,-200.0,0.00016036,2]
[405116226,1770852640173,-151.0,0.00016036,2]
[405116227,1770852640183,-151.0,0.00016036,2]
[405116228,1770852640192,-40.43331533,0.00016036,2]
[405116229,1770852640252,-110.56668467,0.00016036,2]
[405116230,1770852640267,-151.0,0.00016036,2]
[405116231,1770852640278,-151.0,0.00016036,2]
[405116232,1770852640288,-151.0,0.00016036,2]
[405116233,1770852640300,-151.0,0.00016036,2]
[405116234,1770852640310,-151.0,0.00016036,2]
[405116235,1770852640527,-151.0,0.00016036,2]
[405116236,1770852640614,-151.0,0.00016036,2]
[405116237,1770852640625,-151.0,0.00016036,2]
[405116238,1770852640635,-500.0,0.00016046,2]
[405116239,1770852640644,-9999.99,0.00016046,2]
[405116240,1770852640654,-9999.99,0.00016046,2]
[405116241,1770852640664,-499.99,0.00016046,2]
[405116242,1770852640673,-1882.62,0.00016046,2]
[405116243,1770852640683,-150.99,0.00016046,2]
[405116244,1770852640693,-999.99,0.00016046,2]
[405116245,1770852640703,-150.99,0.00016046,2]
[405116246,1770852640713,-1400.0,0.00016082,2]
[405116247,1770852640723,-206.53020557,0.000161,2]
[405116248,1770852640732,-531.98592986,0.000161,2]
[405116249,1770852640741,-240.44832892,0.000161,2]
[405116250,1770852640752,-248.92785975,0.000161,2]
[405116251,1770852640761,-179.94799049,0.000161,2]
[405116252,1770852640771,-360.45053191,0.000161,2]
[405116253,1770852640780,-185.93758859,0.000161,2]
[405116254,1770852640790,-199.11470441,0.000161,2]
[405116255,1770852640800,-188.2,0.00016121,2]
[405116256,1770852640810,-150.0,0.00016228,2]
[405116257,1770852640819,-307.89330124,0.00016246,2]
[405116258,1770852640830,-307.89330124,0.00016246,2]
[405116259,1770852640839,-151.0,0.00016253,2]
[405116260,1770852640849,-151.0,0.00016253,2]
[405116261,1770852640858,-500.0,0.00016255,2]
[405116262,1770852640868,-430.71203498,0.00016255,2]
[405116263,1770852640878,-156.94361139,0.00016255,2]
[405116264,1770852640887,-206.20432549,0.00016255,2]
[405116265,1770852640898,-500.0,0.00016255,2]
[405116266,1770852640908,-500.0,0.00016255,2]
[405116267,1770852640917,-500.0,0.00016255,2]
[405116268,1770852640927,-500.0,0.00016255,2]
[405116269,1770852640937,-500.0,0.00016255,2]
[405116270,1770852640946,-500.0,0.00016255,2]
[405116271,1770852640955,-500.0,0.00016255,2]
[405116272,1770852640965,-500.0,0.00016255,2]
[405116273,1770852640974,-500.0,0.00016255,2]
[405116274,1770852640984,-500.0,0.00016255,2]
[405116275,1770852640994,-500.0,0.00016255,2]
[405116276,1770852641003,-500.0,0.00016255,2]
[405116277,1770852641013,-500.0,0.00016255,2]
[405116278,1770852641023,-500.0,0.00016255,2]
[405116279,1770852641032,-467.59924046,0.00016255,2]
[405116280,1770852641042,-500.0,0.00016255,2]
[405116281,1770852641052,-500.0,0.00016255,2]
[405116282,1770852641062,-500.0,0.00016255,2]
[405116283,1770852641071,-500.0,0.00016255,2]
[405116284,1770852641081,-512.89199582,0.00016255,2]
[405116285,1770852641090,-371.70053924,0.00016255,2]
[405116286,1770852641100,-500.0,0.00016255,2]
[405116287,1770852641109,-500.0,0.00016255,2]
[405116288,1770852641119,-500.0,0.00016255,2]
[405116289,1770852641129,-500.0,0.00016255,2]
[405116290,1770852641138,-500.0,0.00016255,2]
[405116291,1770852641148,-500.0,0.00016255,2]
[405116292,1770852641158,-500.0,0.00016255,2]
[405116293,1770852641167,-500.0,0.00016255,2]
[405116294,1770852641177,-500.0,0.00016255,2]
[405116295,1770852641187,-500.0,0.00016255,2]
[405116296,1770852641197,-500.0,0.00016255,2]
[405116297,1770852641206,-500.0,0.00016255,2]
[405116298,1770852641216,-500.0,0.00016255,2]
[405116299,1770852641226,-500.0,0.00016255,2]
[405116300,1770852641237,-500.0,0.00016255,2]
[405116301,1770852641247,-500.0,0.00016255,2]
[405116302,1770852641261,-500.0,0.00016255,2]
[405116303,1770852641271,-500.0,0.00016255,2]
[405116304,1770852641281,-500.0,0.00016255,2]
[405116305,1770852641291,-500.0,0.00016255,2]
[405116306,1770852641302,-500.0,0.00016255,2]
[405116307,1770852641312,-546.20575033,0.00016255,2]
[405116308,1770852641322,-500.0,0.00016255,2]
[405116309,1770852641334,-500.0,0.00016255,2]
[405116310,1770852641344,-500.0,0.00016255,2]
[405116311,1770852641354,-500.0,0.00016255,2]
[405116312,1770852641365,-500.0,0.00016255,2]
[405116313,1770852641374,-500.0,0.00016255,2]
[405116314,1770852641385,-500.0,0.00016255,2]
[405116315,1770852641395,-500.0,0.00016255,2]
[405116316,1770852641405,-500.0,0.00016255,2]
[405116317,1770852641414,-500.0,0.00016255,2]
[405116318,1770852641425,-500.0,0.00016255,2]
[405116319,1770852641435,-500.0,0.00016255,2]
[405116320,1770852641445,-500.0,0.00016255,2]
[405116321,1770852641455,-500.0,0.00016255,2]
[405116322,1770852641465,-500.0,0.00016255,2]
[405116323,1770852641474,-500.0,0.00016255,2]
[405116324,1770852641485,-500.0,0.00016255,2]
[405116325,1770852641495,-500.0,0.00016255,2]
[405116326,1770852641504,-500.0,0.00016255,2]
[405116327,1770852641514,-500.0,0.00016255,2]
[405116328,1770852641524,-500.0,0.00016255,2]
[405116329,1770852641534,-500.0,0.00016255,2]
[405116330,1770852641543,-500.0,0.00016255,2]
[405116331,1770852641554,-500.0,0.00016255,2]
[405116332,1770852641564,-500.0,0.00016255,2]
[405116333,1770852641575,-500.0,0.00016255,2]
[405116334,1770852641585,-500.0,0.00016255,2]
[405116335,1770852641595,-500.0,0.00016255,2]
[405116336,1770852641605,-500.0,0.00016255,2]
[405116337,1770852641615,-500.0,0.00016255,2]
[405116338,1770852641625,-500.0,0.00016255,2]
[405116339,1770852641636,-500.0,0.00016255,2]
[405116340,1770852641646,-500.0,0.00016255,2]
[405116341,1770852641655,-500.0,0.00016255,2]
[405116342,1770852641665,-500.0,0.00016255,2]
[405116343,1770852641675,-500.0,0.00016255,2]
[405116344,1770852641684,-600.0,0.00016255,2]
[405116345,1770852641694,-500.0,0.00016255,2]
[405116346,1770852641704,-500.0,0.00016255,2]
[405116347,1770852641714,-3500000.0,0.00016256,2]
[405116348,1770852641723,-500.0,0.00016356,2]
[405116349,1770852641733,-500.0,0.00016356,2]
[405116350,1770852641743,-906.0,0.00016438,2]
[405116351,1770852641752,-338.45,0.0001645,2]
[405116352,1770852641762,-160.0,0.00016462,2]
[405116353,1770852641771,-1000.0,0.0001649,2]
[405116354,1770852641781,-160.0,0.0001672,2]
[405116355,1770852641791,-378.0,0.00016733,2]
[405116356,1770852641800,-570.46,0.00016817,2]
[405116357,1770852641810,-165.72983817,0.00016917,2]
[405116358,1770852641819,-906.0,0.00016944,2]
[405116359,1770852641830,-2500.0,0.00016996,2]
[405116360,1770852641839,-841.0,0.0001704,2]
[405116361,1770852641849,-915.513,0.0001704,2]
[405116362,1770852641859,-2000.0,0.000172,2]
[405116363,1770852641869,-338.45,0.00017272,2]
[405116364,1770852641878,-487.0,0.00017352,2]
[405116365,1770852641888,-487.0,0.00017352,2]
[405116366,1770852641897,-487.0,0.00017352,2]
[405116367,1770852641907,-722.31,0.00017352,2]
[405116368,1770852641916,-906.0,0.0001745,2]
[405116369,1770852641926,-1400.0,0.00017452,7]
[405116370,1770852641936,-1000.0,0.00017534,2]
[405116371,1770852641945,-2000.0,0.000176,2]
[405116372,1770852641955,-2793.21248976,0.0001764,2]
[405116373,1770852641965,-1246.0,0.0001768,2]
[405116374,1770852641975,-150.0,0.00017756,2]
[405116375,1770852641983,-1273.0,0.00017756,2]
[405116376,1770852641993,-918.0,0.00017756,2]
[405116377,1770852642004,-1207.0,0.00017756,2]
[405116378,1770852642014,-1288.0,0.00017756,2]
[405116379,1770852642023,-5966.0,0.00017756,2]
[405116380,1770852642032,-3487.0,0.00017756,2]
[405116381,1770852642042,-3000.0,0.000178,2]
[405116382,1770852642051,-150.0,0.00017808,2]
[405116383,1770852642061,-557.09083944,0.00017808,2]
[405116384,1770852642071,-557.09083944,0.00017808,2]
[405116385,1770852642081,-557.09083944,0.00017808,2]
[405116386,1770852642091,-557.09083944,0.00017808,2]
[405116387,1770852642101,-557.09083944,0.00017808,2]
[405116388,1770852642111,-557.09083944,0.00017808,2]
[405116391,1770852642121,-557.09083944,0.00017808,2]
[405116394,1770852642131,-557.09083944,0.00017808,2]
[405116398,1770852642140,-557.09083944,0.00017808,2]
[405116401,1770852642150,-557.09083944,0.00017808,2]
[405116405,1770852642159,-557.09083944,0.00017808,2]
[405116408,1770852642169,-557.09083944,0.00017808,2]
[405116411,1770852642179,-557.09083944,0.00017808,2]
[405116413,1770852642189,-557.09083944,0.00017808,2]
[405116414,1770852642199,-557.09083944,0.00017808,2]
[405116415,1770852642208,-557.09083945,0.00017808,2]
[405116416,1770852642218,-557.09083945,0.00017808,2]
[405116417,1770852642227,-557.09083945,0.00017808,2]
[405116418,1770852642237,-557.09083945,0.00017808,2]
[405116419,1770852642247,-557.09083945,0.00017808,2]
[405116420,1770852642261,-557.09083945,0.00017808,2]
[405116421,1770852642271,-557.09083945,0.00017808,2]
[405116422,1770852642281,-557.09083945,0.00017808,2]
[405116423,1770852642290,-557.09083945,0.00017808,2]
[405116424,1770852642301,-557.09083945,0.00017808,2]
[405116425,1770852642310,-584.94538141,0.00017808,2]
[405116426,1770852642319,-584.94538141,0.00017808,2]
[405116427,1770852642330,-1000.0,0.00017808,2]
[405116428,1770852642340,-2000.0,0.0001782,2]
[405116429,1770852642350,-200.0,0.00017855,2]
[405116430,1770852642359,-200.0,0.00017856,2]
[405116431,1770852642368,-150.0,0.00017863,2]
[405116432,1770852642378,-117262.1973,0.00017899,2]
[405116433,1770852642387,-10000.0,0.000179,2]
[405116434,1770852642396,-5344.0,0.000179,2]
[405116435,1770852642405,-2000.0,0.0001792,2]
[405116436,1770852642415,-906.0,0.00017955,2]
[405116437,1770852642425,-307.89330124,0.0001799,2]
[405116438,1770852642435,-151.0,0.00017996,2]
[405116439,1770852642445,-151.0,0.00017997,2]
[405116440,1770852642454,-126759.4454857,0.00017999,2]
[405116441,1770852642463,-3335.7097714,0.00017999,2]
[405116442,1770852642473,-1786.8197741,0.00017999,2]
[405116443,1770852642482,-165.9291779,0.00017999,2]
[405116444,1770852642492,-666.0,0.00017999,2]
[405116445,1770852642501,-162128.7555226,0.00017999,2]
[405116446,1770852642511,-300.0,0.00017999,2]
[405116447,1770852642520,-300.0,0.00017999,2]
[405116448,1770852642529,-300.0,0.00017999,2]
[405116449,1770852642539,-309351.2367002,0.00017999,2]
[405116450,1770852642548,-12832.9541757,0.00017999,2]
[405116451,1770852642557,-164.69608781,0.00017999,2]
[405116452,1770852642566,-3875760.03598631,0.00018,2]
[405116460,1770852645426,-373.27000001,0.00018,2]
[405116461,1770852645447,-792.44751555,0.00018,2]
[405116462,1770852645632,-19721.74951959,0.00018,2]
[405116463,1770852645728,-726.65367492,0.00018,2]
[405116469,1770852716992,158.07,0.0001245,2]
[405116513,1770853817757,2000.0,0.0003561,120]
[405116547,1770853832143,-158.07,0.00012895,2]
[405116548,1770853832154,-158.07,0.00013339,2]
[405116549,1770853832163,-158.07,0.00013784,2]
[405116550,1770853832173,-250.0,0.00014184,2]
[405116551,1770853832182,-158.07,0.00014229,2]
[405116552,1770853832191,-158.07,0.00014673,2]
[405116553,1770853832200,-200.0,0.00014911,2]
[405116554,1770853832210,-158.07,0.00015118,2]
[405116555,1770853832219,-300.62612703,0.00015173,2]
[405116557,1770853832228,-501.21740786,0.00015173,2]
[405116559,1770853832237,-500.85113025,0.00015173,2]
[405116561,1770853832247,-210.2703424,0.000152,2]
[405116563,1770853832255,-246.43254785,0.000152,2]
[405116564,1770853832265,-255.47309921,0.000152,2]
[405116566,1770853832274,-557.25878409,0.000152,2]
[405116567,1770853832283,-150.0,0.00015273,2]
[405116568,1770853832292,-157.03454128,0.0001529,2]
[405116569,1770853832302,-1200.0,0.00015298,2]
[405116570,1770853832311,-300.0,0.00015299,2]
[405116571,1770853832321,-177.08931927,0.00015299,2]
[405116572,1770853832331,-500.0,0.00015299,2]
[405116573,1770853832340,-500.0,0.00015299,2]
[405116574,1770853832350,-500.0,0.00015299,2]
[405116575,1770853832359,-500.0,0.00015299,2]
[405116576,1770853832369,-500.0,0.00015299,2]
[405116577,1770853832380,-500.0,0.00015299,2]
[405116578,1770853832390,-500.0,0.00015299,2]
[405116579,1770853832399,-500.0,0.00015299,2]
[405116580,1770853832409,-500.0,0.00015299,2]
[405116581,1770853832418,-500.0,0.00015299,2]
[405116582,1770853832427,-500.0,0.00015299,2]
[405116583,1770853832437,-500.0,0.00015299,2]
[405116584,1770853832447,-371.70053924,0.00015299,2]
[405116585,1770853832456,-467.59924046,0.00015299,2]
[405116586,1770853832466,-500.0,0.00015299,2]
[405116587,1770853832476,-500.0,0.00015299,2]
[405116588,1770853832485,-500.0,0.00015299,2]
[405116589,1770853832495,-500.0,0.00015299,2]
[405116590,1770853832505,-500.0,0.00015299,2]
[405116591,1770853832515,-500.0,0.00015299,2]
[405116592,1770853832525,-500.0,0.00015299,2]
[405116593,1770853832534,-500.0,0.00015299,2]
[405116594,1770853832544,-500.0,0.00015299,2]
[405116595,1770853832553,-340.98292181,0.00015299,2]
[405116596,1770853832563,-512.89199582,0.00015299,2]
[405116597,1770853832573,-500.0,0.00015299,2]
[405116598,1770853832582,-500.0,0.00015299,2]
[405116599,1770853832591,-500.0,0.00015299,2]
[405116600,1770853832601,-500.0,0.00015299,2]
[405116601,1770853832611,-500.0,0.00015299,2]
[405116602,1770853832623,-500.0,0.00015299,2]
[405116603,1770853832634,-500.0,0.00015299,2]
[405116604,1770853832644,-500.0,0.00015299,2]
[405116605,1770853832653,-500.0,0.00015299,2]
[405116606,1770853832664,-500.0,0.00015299,2]
[405116607,1770853832675,-500.0,0.00015299,2]
[405116608,1770853832684,-500.0,0.00015299,2]
[405116609,1770853832694,-500.0,0.00015299,2]
[405116610,1770853832706,-500.0,0.00015299,2]
[405116611,1770853832716,-500.0,0.00015299,2]
[405116612,1770853832726,-500.0,0.00015299,2]
[405116613,1770853832735,-500.0,0.00015299,2]
[405116614,1770853832744,-500.0,0.00015299,2]
[405116615,1770853832754,-500.0,0.00015299,2]
[405116616,1770853832763,-400.72971018,0.00015299,2]
[405116617,1770853832862,-135.41906496,0.00015299,2]
[405116618,1770853832871,-258.75811753,0.00015299,2]
[405116619,1770853832882,-241.24188247,0.00015299,2]
[405116620,1770853832892,-500.0,0.00015299,2]
[405116621,1770853832901,-215.0509803,0.00015299,2]
[405116622,1770853832931,-64.64402907,0.00015299,2]
[405116623,1770853832940,-500.0,0.00015299,2]
[405116624,1770853832950,-275.8965365,0.00015299,2]
[405116625,1770853832959,-500.0,0.00015299,2]
[405116626,1770853832968,-500.0,0.00015299,2]
[405116627,1770853832977,-500.0,0.00015299,2]
[405116628,1770853832987,-500.0,0.00015299,2]
[405116629,1770853832997,-500.0,0.00015299,2]
[405116630,1770853833006,-500.0,0.00015299,2]
[405116631,1770853833016,-500.0,0.00015299,2]
[405116632,1770853833029,-124.79179324,0.00015299,2]
[405116633,1770853833040,-293.48857706,0.00015299,2]
[405116634,1770853833066,-81.7196297,0.00015299,2]
[405116635,1770853833075,-500.0,0.00015299,2]
[405116636,1770853833084,-500.0,0.00015299,2]
[405116637,1770853833094,-500.0,0.00015299,2]
[405116638,1770853833103,-500.0,0.00015299,2]
[405116639,1770853833112,-434.09829218,0.00015299,2]
[405116640,1770853833121,-500.0,0.00015299,2]
[405116641,1770853833131,-500.0,0.00015299,2]
[405116642,1770853833141,-500.0,0.00015299,2]
[405116643,1770853833150,-500.0,0.00015299,2]
[405116644,1770853833159,-500.0,0.00015299,2]
[405116645,1770853833168,-500.0,0.00015299,2]
[405116646,1770853833178,-255.3207905,0.00015299,2]